[Event "Live Chess"]
[Site "Chess.com"]
[Date "2024.06.01"]
[Round "-"]
[White "Queensandpawns"]
[Black "Ferrarifan27"]
[Result "0-1"]
[WhiteElo "2367"]
[BlackElo "2106"]
[TimeControl "300"]
[EndTime "15:12:35 PDT"]
[Termination "Ferrarifan27 won by checkmate"]

1. e4 {[%clk 0:04:59.2]} 1... e5 {[%clk 0:04:52.7]} 2. d4 {[%clk 0:04:57]} 2...
exd4 {[%clk 0:04:50.7]} 3. c3 {[%clk 0:04:56.9]} 3... dxc3 {[%clk 0:04:48.9]} 4.
Bc4 {[%clk 0:04:56.5]} 4... cxb2 {[%clk 0:04:44.8]} 5. Bxb2 {[%clk 0:04:56.4]}
5... Bb4+ {[%clk 0:04:39.7]} 6. Kf1 {[%clk 0:04:53.9]} 6... Nf6 {[%clk
0:04:32.8]} 7. e5 {[%clk 0:04:52.2]} 7... Ng8 {[%clk 0:04:28.3]} 8. Qb3 {[%clk
0:04:49.5]} 8... Qe7 {[%clk 0:04:25.6]} 9. Bxf7+ {[%clk 0:04:46.5]} 9... Qxf7
{[%clk 0:04:24.6]} 10. Qxb4 {[%clk 0:04:46.4]} 10... Nc6 {[%clk 0:04:21.6]} 11.
Qh4 {[%clk 0:04:42.8]} 11... d6 {[%clk 0:04:11.5]} 12. Nf3 {[%clk 0:04:40.8]}
12... dxe5 {[%clk 0:04:07.9]} 13. Nc3 {[%clk 0:04:40]} 13... Nf6 {[%clk
0:04:05.8]} 14. Re1 {[%clk 0:04:36.4]} 14... O-O {[%clk 0:04:03.4]} 15. Ng5
{[%clk 0:04:34]} 15... Qg6 {[%clk 0:03:54.2]} 16. Re3 {[%clk 0:04:30.5]} 16...
h6 {[%clk 0:03:47.9]} 17. Nge4 {[%clk 0:04:25.1]} 17... Nxe4 {[%clk 0:03:44.9]}
18. Nxe4 {[%clk 0:04:25]} 18... Rf4 {[%clk 0:03:32.9]} 19. Qg3 {[%clk
0:04:18.9]} 19... Qxg3 {[%clk 0:03:26.6]} 20. hxg3 {[%clk 0:04:18.8]} 20... Rf8
{[%clk 0:03:22.5]} 21. Nc5 {[%clk 0:04:16.3]} 21... b6 {[%clk 0:03:19.4]} 22.
Nd3 {[%clk 0:04:13.2]} 22... Ba6 {[%clk 0:03:17.1]} 23. Kg1 {[%clk 0:04:12.5]}
23... Bxd3 {[%clk 0:03:08.5]} 24. Rxd3 {[%clk 0:04:12.4]} 24... Rad8 {[%clk
0:03:07.4]} 25. Rc3 {[%clk 0:04:10.4]} 25... Rd1+ {[%clk 0:03:04.1]} 26. Kh2
{[%clk 0:04:04.8]} 26... Rxh1+ {[%clk 0:03:03]} 27. Kxh1 {[%clk 0:04:04.7]}
27... Rxf2 {[%clk 0:03:01.4]} 28. Ba3 {[%clk 0:03:59.8]} 28... Rxa2 {[%clk
0:02:53.8]} 29. Kh2 {[%clk 0:03:55.4]} 29... Nd4 {[%clk 0:02:51.3]} 30. Be7
{[%clk 0:03:53]} 30... c5 {[%clk 0:02:47.7]} 31. Re3 {[%clk 0:03:50.7]} 31...
Nf5 {[%clk 0:02:44.5]} 32. Rxe5 {[%clk 0:03:48.3]} 32... Nxe7 {[%clk 0:02:40.4]}
33. Rxe7 {[%clk 0:03:48.2]} 33... Kf8 {[%clk 0:02:39.7]} 34. Rb7 {[%clk
0:03:47]} 34... c4 {[%clk 0:02:33.9]} 35. g4 {[%clk 0:03:46.9]} 35... c3 {[%clk
0:02:31.9]} 36. Rc7 {[%clk 0:03:46.8]} 36... c2 {[%clk 0:02:30.5]} 37. g5 {[%clk
0:03:46.7]} 37... hxg5 {[%clk 0:02:26.6]} 38. Kh3 {[%clk 0:03:46.6]} 38... b5
{[%clk 0:02:23.9]} 39. g3 {[%clk 0:03:45.6]} 39... b4 {[%clk 0:02:22.4]} 40. Kg4
{[%clk 0:03:45.2]} 40... b3 {[%clk 0:02:17.9]} 41. Kxg5 {[%clk 0:03:44.7]} 41...
b2 {[%clk 0:02:13.1]} 42. g4 {[%clk 0:03:42.1]} 42... c1=Q+ {[%clk 0:02:10.2]}
43. Kg6 {[%clk 0:03:41.7]} 43... Ra6+ {[%clk 0:02:06.7]} 44. Kh7 {[%clk
0:03:33.5]} 44... Qh1# {[%clk 0:02:03.3]} 0-1

[Event "Live Chess"]
[Site "Chess.com"]
[Date "2024.06.01"]
[Round "-"]
[White "Mikhail_Golubev"]
[Black "lateforthesky"]
[Result "1-0"]
[WhiteElo "2584"]
[BlackElo "2133"]
[TimeControl "300"]
[EndTime "15:12:37 PDT"]
[Termination "Mikhail_Golubev won by checkmate"]

1. e4 {[%clk 0:04:57.6]} 1... c5 {[%clk 0:04:57.9]} 2. Nf3 {[%clk 0:04:56.1]}
2... Nf6 {[%clk 0:04:55.8]} 3. Nc3 {[%clk 0:04:52.9]} 3... d5 {[%clk 0:04:53.5]}
4. exd5 {[%clk 0:04:50.5]} 4... Nxd5 {[%clk 0:04:51.9]} 5. Bc4 {[%clk
0:04:47.7]} 5... e6 {[%clk 0:04:49.5]} 6. O-O {[%clk 0:04:37.3]} 6... Nc6 {[%clk
0:04:45]} 7. Re1 {[%clk 0:04:23.1]} 7... Be7 {[%clk 0:04:42.3]} 8. d3 {[%clk
0:03:57.4]} 8... Nxc3 {[%clk 0:04:37.1]} 9. bxc3 {[%clk 0:03:55.7]} 9... O-O
{[%clk 0:04:36.1]} 10. d4 {[%clk 0:03:37.6]} 10... cxd4 {[%clk 0:04:24.9]} 11.
cxd4 {[%clk 0:03:37.5]} 11... Bf6 {[%clk 0:04:21.2]} 12. Ba3 {[%clk 0:03:13.7]}
12... Nxd4 {[%clk 0:03:55.9]} 13. Nxd4 {[%clk 0:03:08.1]} 13... Qxd4 {[%clk
0:03:52.6]} 14. Qxd4 {[%clk 0:03:06]} 14... Bxd4 {[%clk 0:03:50.8]} 15. Rad1
{[%clk 0:03:04]} 15... Bf6 {[%clk 0:03:42.9]} 16. Bxf8 {[%clk 0:03:02.5]} 16...
Kxf8 {[%clk 0:03:42.4]} 17. Bd3 {[%clk 0:01:47]} 17... g6 {[%clk 0:03:18.6]} 18.
Be4 {[%clk 0:01:45.8]} 18... Rb8 {[%clk 0:03:10.7]} 19. Re3 {[%clk 0:01:39.7]}
19... b6 {[%clk 0:03:06]} 20. Ra3 {[%clk 0:01:35.8]} 20... Bb7 {[%clk
0:03:00.4]} 21. Bxb7 {[%clk 0:01:24.7]} 21... Rxb7 {[%clk 0:02:59.7]} 22. Rad3
{[%clk 0:01:09.3]} 22... Ke8 {[%clk 0:02:36.2]} 23. c4 {[%clk 0:01:03.5]} 23...
Rc7 {[%clk 0:02:34.1]} 24. Rc1 {[%clk 0:01:02.6]} 24... Be7 {[%clk 0:02:29.4]}
25. a4 {[%clk 0:00:56.1]} 25... a5 {[%clk 0:02:24.6]} 26. Kf1 {[%clk 0:00:54.5]}
26... Bc5 {[%clk 0:02:23.1]} 27. Ke2 {[%clk 0:00:53.8]} 27... e5 {[%clk
0:02:15.5]} 28. g3 {[%clk 0:00:51.2]} 28... f5 {[%clk 0:02:12.2]} 29. Rd5 {[%clk
0:00:50.2]} 29... e4 {[%clk 0:02:07.4]} 30. g4 {[%clk 0:00:49.5]} 30... Rf7
{[%clk 0:02:03]} 31. gxf5 {[%clk 0:00:48.7]} 31... gxf5 {[%clk 0:01:59.9]} 32.
f3 {[%clk 0:00:43.8]} 32... e3 {[%clk 0:01:50.1]} 33. Rg1 {[%clk 0:00:41]} 33...
Ke7 {[%clk 0:01:23.1]} 34. f4 {[%clk 0:00:40]} 34... Ke6 {[%clk 0:01:02.8]} 35.
h4 {[%clk 0:00:38.5]} 35... Rf6 {[%clk 0:00:53.5]} 36. Rg5 {[%clk 0:00:33.6]}
36... Rh6 {[%clk 0:00:47.4]} 37. h5 {[%clk 0:00:30.3]} 37... Rf6 {[%clk
0:00:45.1]} 38. Kf3 {[%clk 0:00:28.6]} 38... h6 {[%clk 0:00:38.2]} 39. Rg8
{[%clk 0:00:26.8]} 39... Kf7 {[%clk 0:00:36.4]} 40. Rg2 {[%clk 0:00:23.7]} 40...
Kf8 {[%clk 0:00:25.8]} 41. Rd7 {[%clk 0:00:21.3]} 41... Ke8 {[%clk 0:00:23.6]}
42. Ra7 {[%clk 0:00:19.5]} 42... Rd6 {[%clk 0:00:20.1]} 43. Rg8# {[%clk
0:00:17.7]} 1-0

[Event "Live Chess"]
[Site "Chess.com"]
[Date "2024.06.01"]
[Round "-"]
[White "updatedopenings2024"]
[Black "NomisY"]
[Result "0-1"]
[WhiteElo "1959"]
[BlackElo "2285"]
[TimeControl "300"]
[EndTime "15:13:08 PDT"]
[Termination "NomisY won by resignation"]

1. e4 {[%clk 0:04:58.4]} 1... c6 {[%clk 0:04:57.1]} 2. d4 {[%clk 0:04:57.1]}
2... d5 {[%clk 0:04:54.9]} 3. e5 {[%clk 0:04:56.5]} 3... Bf5 {[%clk 0:04:52.4]}
4. Nd2 {[%clk 0:04:55.6]} 4... e6 {[%clk 0:04:41]} 5. Nb3 {[%clk 0:04:54.4]}
5... Ne7 {[%clk 0:04:32.1]} 6. Nf3 {[%clk 0:04:51.6]} 6... Nd7 {[%clk
0:04:30.8]} 7. Be2 {[%clk 0:04:50.6]} 7... h6 {[%clk 0:04:22.1]} 8. O-O {[%clk
0:04:49.2]} 8... g5 {[%clk 0:04:18.2]} 9. a4 {[%clk 0:04:48]} 9... Bg7 {[%clk
0:04:09.5]} 10. Ne1 {[%clk 0:04:46.6]} 10... O-O {[%clk 0:04:05]} 11. f4 {[%clk
0:04:45.9]} 11... f6 {[%clk 0:03:59.5]} 12. exf6 {[%clk 0:04:43.5]} 12... Bxf6
{[%clk 0:03:56.8]} 13. fxg5 {[%clk 0:04:42.4]} 13... hxg5 {[%clk 0:03:52.7]} 14.
Bd3 {[%clk 0:04:41.7]} 14... Qe8 {[%clk 0:03:33.8]} 15. Qe2 {[%clk 0:04:34.1]}
15... Ng6 {[%clk 0:03:30.3]} 16. Nf3 {[%clk 0:04:20.9]} 16... g4 {[%clk
0:03:22.1]} 17. Ng5 {[%clk 0:04:11.3]} 17... Nh4 {[%clk 0:03:05.8]} 18. Bxf5
{[%clk 0:03:45.1]} 18... exf5 {[%clk 0:02:57.7]} 19. Qe6+ {[%clk 0:03:44.4]}
19... Qxe6 {[%clk 0:02:50.4]} 20. Nxe6 {[%clk 0:03:44.3]} 20... Rf7 {[%clk
0:02:49.9]} 21. Bg5 {[%clk 0:03:33]} 21... Re8 {[%clk 0:02:41.3]} 22. Bxf6
{[%clk 0:03:30.2]} 22... Nxf6 {[%clk 0:02:39.6]} 23. Nf4 {[%clk 0:03:30.1]}
23... Rfe7 {[%clk 0:02:34.5]} 24. Nc5 {[%clk 0:03:25.9]} 24... Kg7 {[%clk
0:02:31.2]} 25. Ncd3 {[%clk 0:03:25.2]} 25... Rh8 {[%clk 0:02:16.4]} 26. Ne5
{[%clk 0:03:24.1]} 26... Nd7 {[%clk 0:02:11.2]} 27. Nfd3 {[%clk 0:03:21.1]}
27... Nxe5 {[%clk 0:01:57.8]} 28. Nxe5 {[%clk 0:03:21]} 28... Rh5 {[%clk
0:01:56.3]} 29. c3 {[%clk 0:03:16.8]} 29... Ng6 {[%clk 0:01:51.3]} 30. Nxg6
{[%clk 0:03:15.8]} 30... Kxg6 {[%clk 0:01:48.9]} 31. Rae1 {[%clk 0:03:15.7]}
31... Rxe1 {[%clk 0:01:35.3]} 32. Rxe1 {[%clk 0:03:15.6]} 32... Rh7 {[%clk
0:01:34.2]} 33. b4 {[%clk 0:03:09.2]} 33... f4 {[%clk 0:01:23.6]} 34. Re6+
{[%clk 0:03:04.4]} 34... Kf5 {[%clk 0:01:20.6]} 35. Re5+ {[%clk 0:03:03.5]}
35... Kf6 {[%clk 0:01:15.6]} 36. a5 {[%clk 0:03:00.9]} 36... Re7 {[%clk
0:01:07]} 37. Rxe7 {[%clk 0:02:59.9]} 37... Kxe7 {[%clk 0:01:04.8]} 38. Kf2
{[%clk 0:02:59.8]} 38... Kf6 {[%clk 0:00:57.3]} 39. h3 {[%clk 0:02:59.1]} 39...
Kf5 {[%clk 0:00:54.3]} 40. Ke2 {[%clk 0:02:50.5]} 40... Kg5 {[%clk 0:00:50.7]}
41. hxg4 {[%clk 0:02:45.5]} 41... Kxg4 {[%clk 0:00:49.6]} 42. Kf2 {[%clk
0:02:45]} 42... a6 {[%clk 0:00:43.4]} 43. Ke2 {[%clk 0:02:38.2]} 43... Kg3
{[%clk 0:00:42.4]} 44. Kf1 {[%clk 0:02:37.7]} 44... f3 {[%clk 0:00:36.3]} 45.
gxf3 {[%clk 0:02:37.6]} 45... Kxf3 {[%clk 0:00:35.8]} 46. Ke1 {[%clk 0:02:37.2]}
46... Ke3 {[%clk 0:00:35.4]} 47. Kd1 {[%clk 0:02:36.8]} 47... Kd3 {[%clk
0:00:34.7]} 0-1

[Event "Live Chess"]
[Site "Chess.com"]
[Date "2024.06.01"]
[Round "-"]
[White "StoreySniper"]
[Black "NebodarMatevich"]
[Result "1-0"]
[WhiteElo "2546"]
[BlackElo "1558"]
[TimeControl "300"]
[EndTime "15:13:10 PDT"]
[Termination "StoreySniper won by resignation"]

1. d4 {[%clk 0:04:57.6]} 1... Nf6 {[%clk 0:04:58.2]} 2. Bf4 {[%clk 0:04:56.3]}
2... c5 {[%clk 0:04:57.2]} 3. d5 {[%clk 0:04:55]} 3... Qb6 {[%clk 0:04:54.6]} 4.
Nc3 {[%clk 0:04:54.2]} 4... Qxb2 {[%clk 0:04:51.5]} 5. Bd2 {[%clk 0:04:53.5]}
5... e6 {[%clk 0:04:27.7]} 6. e4 {[%clk 0:04:51.7]} 6... exd5 {[%clk 0:04:24.3]}
7. exd5 {[%clk 0:04:49]} 7... Be7 {[%clk 0:04:22.3]} 8. Nf3 {[%clk 0:04:42.8]}
8... O-O {[%clk 0:04:20.1]} 9. Bd3 {[%clk 0:04:37.7]} 9... d6 {[%clk 0:04:19.3]}
10. h3 {[%clk 0:04:33.9]} 10... Bd7 {[%clk 0:03:39.2]} 11. O-O {[%clk
0:04:25.3]} 11... b6 {[%clk 0:03:38.1]} 12. a3 {[%clk 0:04:19.3]} 12... c4
{[%clk 0:02:46.8]} 13. Bxc4 {[%clk 0:04:12.2]} 13... b5 {[%clk 0:02:45.5]} 14.
Bb3 {[%clk 0:04:08.3]} 14... b4 {[%clk 0:02:42.6]} 15. axb4 {[%clk 0:04:06.3]}
15... Bb5 {[%clk 0:02:30.1]} 16. Nxb5 {[%clk 0:04:05.3]} 1-0

[Event "Live Chess"]
[Site "Chess.com"]
[Date "2024.06.01"]
[Round "-"]
[White "MagnersCarlsberg2870"]
[Black "Delacorta"]
[Result "1-0"]
[WhiteElo "1766"]
[BlackElo "1552"]
[TimeControl "300"]
[EndTime "15:13:17 PDT"]
[Termination "MagnersCarlsberg2870 won by resignation"]

1. d4 {[%clk 0:04:57.7]} 1... Nf6 {[%clk 0:04:57.3]} 2. Nf3 {[%clk 0:04:56.7]}
2... g6 {[%clk 0:04:54.5]} 3. Nc3 {[%clk 0:04:55.6]} 3... Bg7 {[%clk 0:04:53.6]}
4. e4 {[%clk 0:04:54.7]} 4... e6 {[%clk 0:04:52.1]} 5. Bg5 {[%clk 0:04:52.2]}
5... d6 {[%clk 0:04:40.6]} 6. e5 {[%clk 0:04:50.6]} 6... dxe5 {[%clk 0:04:38.3]}
7. dxe5 {[%clk 0:04:49.6]} 7... Qxd1+ {[%clk 0:04:37.4]} 8. Rxd1 {[%clk
0:04:48.1]} 8... Nfd7 {[%clk 0:04:26.9]} 9. Bb5 {[%clk 0:04:40.1]} 9... c6
{[%clk 0:04:25.2]} 10. Bc4 {[%clk 0:04:37.7]} 10... O-O {[%clk 0:04:24.1]} 11.
Bf4 {[%clk 0:04:33]} 11... Re8 {[%clk 0:04:15]} 12. h4 {[%clk 0:04:31.5]} 12...
h5 {[%clk 0:04:13.2]} 13. Ng5 {[%clk 0:04:26.1]} 13... Nc5 {[%clk 0:04:09.7]}
14. Nce4 {[%clk 0:04:20.6]} 14... Nxe4 {[%clk 0:04:07.7]} 15. Nxe4 {[%clk
0:04:19.1]} 15... Nd7 {[%clk 0:04:04.5]} 16. Nd6 {[%clk 0:04:10]} 16... Rf8
{[%clk 0:03:57.4]} 17. Nxc8 {[%clk 0:04:08.7]} 17... Raxc8 {[%clk 0:03:55.5]}
18. Rxd7 {[%clk 0:04:08.2]} 1-0

[Event "Live Chess"]
[Site "Chess.com"]
[Date "2024.06.01"]
[Round "-"]
[White "IgorSchukin"]
[Black "wadsy27"]
[Result "0-1"]
[WhiteElo "1704"]
[BlackElo "2541"]
[TimeControl "300"]
[EndTime "15:13:24 PDT"]
[Termination "wadsy27 won on time"]

1. e4 {[%clk 0:04:57.1]} 1... c5 {[%clk 0:04:57.3]} 2. a3 {[%clk 0:04:55.5]}
2... e6 {[%clk 0:04:53.4]} 3. Nc3 {[%clk 0:04:54.2]} 3... Nc6 {[%clk 0:04:51.7]}
4. Bc4 {[%clk 0:04:52.7]} 4... a6 {[%clk 0:04:44.5]} 5. d3 {[%clk 0:04:51.3]}
5... b5 {[%clk 0:04:42.6]} 6. Ba2 {[%clk 0:04:50.2]} 6... Bb7 {[%clk 0:04:42.5]}
7. Nf3 {[%clk 0:04:48.8]} 7... Nf6 {[%clk 0:04:42.2]} 8. O-O {[%clk 0:04:47.8]}
8... d6 {[%clk 0:04:41.7]} 9. Bg5 {[%clk 0:04:46.2]} 9... Be7 {[%clk 0:04:41.3]}
10. Ne2 {[%clk 0:04:42.2]} 10... h6 {[%clk 0:04:21.1]} 11. Bh4 {[%clk
0:04:40.1]} 11... g5 {[%clk 0:04:16.4]} 12. Bg3 {[%clk 0:04:38.1]} 12... Nh5
{[%clk 0:04:13.4]} 13. c3 {[%clk 0:04:34.2]} 13... Nxg3 {[%clk 0:03:57.4]} 14.
Nxg3 {[%clk 0:04:29.1]} 14... h5 {[%clk 0:03:49.9]} 15. Re1 {[%clk 0:04:04.4]}
15... h4 {[%clk 0:03:45.7]} 16. Nf1 {[%clk 0:04:00.3]} 16... g4 {[%clk
0:03:41.8]} 17. N3d2 {[%clk 0:03:58.2]} 17... Qc7 {[%clk 0:03:36.5]} 18. Qxg4
{[%clk 0:03:55]} 18... h3 {[%clk 0:03:35.7]} 19. Ne3 {[%clk 0:03:43.8]} 19...
hxg2 {[%clk 0:03:32.2]} 20. Nxg2 {[%clk 0:03:37.4]} 20... Ne5 {[%clk 0:03:30.9]}
21. Qg3 {[%clk 0:03:29.5]} 21... O-O-O {[%clk 0:03:29.5]} 22. f4 {[%clk
0:03:28.3]} 22... Rdg8 {[%clk 0:03:28.6]} 23. Qe3 {[%clk 0:03:22]} 23... Ng4
{[%clk 0:03:26.9]} 24. Qe2 {[%clk 0:03:01.7]} 24... Rxh2 {[%clk 0:03:23]} 25.
Nf3 {[%clk 0:02:40.3]} 25... Rh3 {[%clk 0:03:18.7]} 26. Ng5 {[%clk 0:02:29]}
26... Rg3 {[%clk 0:03:10.2]} 27. Nxe6 {[%clk 0:01:50.4]} 27... fxe6 {[%clk
0:02:57.7]} 28. Bxe6+ {[%clk 0:01:48.3]} 28... Kb8 {[%clk 0:02:57.3]} 29. Bxg8
{[%clk 0:01:46.8]} 29... Ne3 {[%clk 0:02:56.9]} 30. Qxe3 {[%clk 0:01:37.3]}
30... Rxe3 {[%clk 0:02:55.9]} 31. Rxe3 {[%clk 0:01:35.5]} 31... d5 {[%clk
0:02:55]} 32. Bxd5 {[%clk 0:01:28.8]} 32... Bd6 {[%clk 0:02:41.6]} 33. Bxb7
{[%clk 0:01:26.2]} 33... Bxf4 {[%clk 0:02:40.6]} 34. Rf3 {[%clk 0:01:22.3]}
34... Bh2+ {[%clk 0:02:39.5]} 35. Kf1 {[%clk 0:01:18.6]} 35... Kxb7 {[%clk
0:02:37.4]} 36. Re1 {[%clk 0:01:05.2]} 36... b4 {[%clk 0:02:33.4]} 37. axb4
{[%clk 0:01:03]} 37... cxb4 {[%clk 0:02:32.3]} 38. e5 {[%clk 0:00:59.5]} 38...
bxc3 {[%clk 0:02:24.5]} 39. bxc3 {[%clk 0:00:57.8]} 39... Bxe5 {[%clk
0:02:22.7]} 40. d4 {[%clk 0:00:50.6]} 40... Bd6 {[%clk 0:02:19.9]} 41. Ne3
{[%clk 0:00:44.1]} 41... Qxc3 {[%clk 0:02:13.7]} 42. Rb1+ {[%clk 0:00:32.9]}
42... Kc6 {[%clk 0:02:06.6]} 43. d5+ {[%clk 0:00:20.5]} 43... Kc5 {[%clk
0:02:03.3]} 44. Ke2 {[%clk 0:00:10.3]} 44... a5 {[%clk 0:01:58]} 45. Rd1 {[%clk
0:00:07.4]} 45... Qb2+ {[%clk 0:01:52.3]} 46. Rd2 {[%clk 0:00:06.3]} 46... Qb5+
{[%clk 0:01:51.8]} 47. Kf2 {[%clk 0:00:04.8]} 47... a4 {[%clk 0:01:50.4]} 48.
Rc2+ {[%clk 0:00:03.9]} 48... Kb6 {[%clk 0:01:43.7]} 49. Nc4+ {[%clk 0:00:02.9]}
49... Ka6 {[%clk 0:01:43.3]} 50. Nxd6 {[%clk 0:00:01.5]} 50... Qb6+ {[%clk
0:01:42.9]} 0-1

[Event "Live Chess"]
[Site "Chess.com"]
[Date "2024.06.01"]
[Round "-"]
[White "CCGoodKnightRookie"]
[Black "Cruiseylee78"]
[Result "1-0"]
[WhiteElo "2364"]
[BlackElo "1697"]
[TimeControl "300"]
[EndTime "15:13:34 PDT"]
[Termination "CCGoodKnightRookie won by resignation"]

1. d4 {[%clk 0:04:58.6]} 1... d5 {[%clk 0:04:48.6]} 2. Nc3 {[%clk 0:04:57.2]}
2... Bf5 {[%clk 0:04:46.6]} 3. Bf4 {[%clk 0:04:56.3]} 3... e6 {[%clk 0:04:45.8]}
4. e3 {[%clk 0:04:55.6]} 4... c6 {[%clk 0:04:44.9]} 5. Nf3 {[%clk 0:04:54.8]}
5... Nd7 {[%clk 0:04:44.3]} 6. Ne5 {[%clk 0:04:54.3]} 6... Ngf6 {[%clk 0:04:40]}
7. g4 {[%clk 0:04:53.7]} 7... Nxe5 {[%clk 0:04:25.6]} 8. gxf5 {[%clk 0:04:51.3]}
8... exf5 {[%clk 0:04:18.9]} 9. dxe5 {[%clk 0:04:49.4]} 9... Ne4 {[%clk
0:04:17]} 10. Nxe4 {[%clk 0:04:48.4]} 10... fxe4 {[%clk 0:04:15.9]} 11. Bh3
{[%clk 0:04:43.1]} 11... Qa5+ {[%clk 0:04:11.4]} 12. c3 {[%clk 0:04:41.5]} 12...
Be7 {[%clk 0:04:06.5]} 13. Qg4 {[%clk 0:04:40]} 13... g6 {[%clk 0:04:04.9]} 14.
Qd7+ {[%clk 0:04:35.5]} 14... Kf8 {[%clk 0:04:03.2]} 15. Bh6+ {[%clk 0:04:34.6]}
15... Kg8 {[%clk 0:04:01.8]} 16. Qxe7 {[%clk 0:04:34.5]} 1-0

[Event "Live Chess"]
[Site "Chess.com"]
[Date "2024.06.01"]
[Round "-"]
[White "JanMur7"]
[Black "CarmelJane"]
[Result "1-0"]
[WhiteElo "2287"]
[BlackElo "2069"]
[TimeControl "300"]
[EndTime "15:13:42 PDT"]
[Termination "JanMur7 won by checkmate"]

1. c4 {[%clk 0:04:57.7]} 1... g6 {[%clk 0:04:59.2]} 2. Nc3 {[%clk 0:04:56.4]}
2... Bg7 {[%clk 0:04:59.1]} 3. d4 {[%clk 0:04:55.9]} 3... c5 {[%clk 0:04:57.5]}
4. Be3 {[%clk 0:04:52.8]} 4... cxd4 {[%clk 0:04:54.3]} 5. Bxd4 {[%clk
0:04:52.7]} 5... Nf6 {[%clk 0:04:53.6]} 6. g3 {[%clk 0:04:50.9]} 6... Nc6 {[%clk
0:04:52.8]} 7. Nf3 {[%clk 0:04:48.6]} 7... Nxd4 {[%clk 0:04:50.6]} 8. Nxd4
{[%clk 0:04:48.5]} 8... O-O {[%clk 0:04:49.4]} 9. Bg2 {[%clk 0:04:48]} 9... d6
{[%clk 0:04:48.4]} 10. O-O {[%clk 0:04:47.3]} 10... Rb8 {[%clk 0:04:46.6]} 11.
a4 {[%clk 0:04:44.1]} 11... a6 {[%clk 0:04:46]} 12. a5 {[%clk 0:04:42.5]} 12...
Bd7 {[%clk 0:04:40.6]} 13. Qd3 {[%clk 0:04:25.9]} 13... Qc8 {[%clk 0:04:37.3]}
14. Na4 {[%clk 0:04:14.5]} 14... Bh3 {[%clk 0:04:23.1]} 15. Nb6 {[%clk
0:04:06.3]} 15... Qg4 {[%clk 0:04:21.1]} 16. f3 {[%clk 0:03:39]} 16... Qh5
{[%clk 0:04:14.4]} 17. e4 {[%clk 0:03:22.2]} 17... Bxg2 {[%clk 0:04:06.1]} 18.
Kxg2 {[%clk 0:03:19.4]} 18... Rfd8 {[%clk 0:03:50]} 19. Rad1 {[%clk 0:03:06.3]}
19... Qc5 {[%clk 0:03:41.7]} 20. Nb3 {[%clk 0:02:55.1]} 20... Qc7 {[%clk
0:03:40.3]} 21. Rc1 {[%clk 0:02:46.7]} 21... Nd7 {[%clk 0:03:38.4]} 22. Nxd7
{[%clk 0:02:44.1]} 22... Qxd7 {[%clk 0:03:38]} 23. Rc2 {[%clk 0:02:41]} 23... b5
{[%clk 0:03:13.8]} 24. c5 {[%clk 0:02:32.8]} 24... Rbc8 {[%clk 0:02:55.7]} 25.
Rd1 {[%clk 0:02:28.8]} 25... Qe6 {[%clk 0:02:53.1]} 26. Qd5 {[%clk 0:02:08.6]}
26... Qf6 {[%clk 0:02:14.2]} 27. c6 {[%clk 0:02:02.7]} 27... e6 {[%clk
0:02:08.6]} 28. Qd4 {[%clk 0:01:52.5]} 28... Qe7 {[%clk 0:02:07.7]} 29. Qb6
{[%clk 0:01:41.5]} 29... d5 {[%clk 0:01:28.1]} 30. exd5 {[%clk 0:01:32.9]} 30...
exd5 {[%clk 0:01:20.1]} 31. Qxa6 {[%clk 0:01:30.6]} 31... Qb4 {[%clk 0:01:19.5]}
32. c7 {[%clk 0:01:10.6]} 32... Re8 {[%clk 0:01:17.5]} 33. Rd3 {[%clk
0:01:08.6]} 33... Be5 {[%clk 0:01:04.1]} 34. Qb7 {[%clk 0:01:01.7]} 34... Bd6
{[%clk 0:00:56]} 35. a6 {[%clk 0:00:52.7]} 35... Qe1 {[%clk 0:00:48.8]} 36. Rdd2
{[%clk 0:00:22.8]} 36... h5 {[%clk 0:00:29.6]} 37. a7 {[%clk 0:00:18.6]} 37...
h4 {[%clk 0:00:28.8]} 38. f4 {[%clk 0:00:15.4]} 38... hxg3 {[%clk 0:00:23.8]}
39. hxg3 {[%clk 0:00:15.3]} 39... Qe4+ {[%clk 0:00:20.7]} 40. Kg1 {[%clk
0:00:13]} 40... Qe1+ {[%clk 0:00:18.7]} 41. Kg2 {[%clk 0:00:12.7]} 41... Qe4+
{[%clk 0:00:18.3]} 42. Kh2 {[%clk 0:00:11.9]} 42... Qf5 {[%clk 0:00:16.7]} 43.
Qxd5 {[%clk 0:00:10.2]} 43... Qh5+ {[%clk 0:00:16.3]} 44. Qxh5 {[%clk
0:00:08.9]} 44... gxh5 {[%clk 0:00:16.2]} 45. Rxd6 {[%clk 0:00:08.4]} 45... Ra8
{[%clk 0:00:14.1]} 46. Rcd2 {[%clk 0:00:08.3]} 46... Kg7 {[%clk 0:00:12.1]} 47.
Rd8 {[%clk 0:00:08.2]} 47... Rexd8 {[%clk 0:00:10.3]} 48. Rxd8 {[%clk
0:00:08.1]} 48... Rxa7 {[%clk 0:00:09.8]} 49. c8=Q {[%clk 0:00:06.6]} 49... Ra2
{[%clk 0:00:09.7]} 50. Rg8+ {[%clk 0:00:05.7]} 50... Kf6 {[%clk 0:00:09.6]} 51.
Qd8+ {[%clk 0:00:05.4]} 51... Kf5 {[%clk 0:00:08.8]} 52. Qg5+ {[%clk 0:00:03.7]}
52... Ke4 {[%clk 0:00:07.8]} 53. Qe5+ {[%clk 0:00:03.6]} 53... Kf3 {[%clk
0:00:07.7]} 54. Nd4+ {[%clk 0:00:03]} 54... Kf2 {[%clk 0:00:06.8]} 55. Qe2#
{[%clk 0:00:02.9]} 1-0

[Event "Live Chess"]
[Site "Chess.com"]
[Date "2024.06.01"]
[Round "-"]
[White "BearFromUkraine"]
[Black "Zhevzh1k7"]
[Result "0-1"]
[WhiteElo "988"]
[BlackElo "1109"]
[TimeControl "300"]
[EndTime "15:13:47 PDT"]
[Termination "Zhevzh1k7 won by resignation"]

1. e4 {[%clk 0:04:51.4]} 1... c6 {[%clk 0:04:56.4]} 2. d4 {[%clk 0:04:49.8]}
2... d5 {[%clk 0:04:53.1]} 3. exd5 {[%clk 0:04:49.7]} 3... cxd5 {[%clk
0:04:51.7]} 4. Nf3 {[%clk 0:04:47.3]} 4... Nc6 {[%clk 0:04:50.1]} 5. Bb5 {[%clk
0:04:44.2]} 5... Qb6 {[%clk 0:04:45.5]} 6. Bxc6+ {[%clk 0:04:42.3]} 6... bxc6
{[%clk 0:04:44.1]} 7. O-O {[%clk 0:04:40.7]} 7... Nf6 {[%clk 0:04:43.3]} 8. Nc3
{[%clk 0:04:35.1]} 8... Bb7 {[%clk 0:04:41.8]} 9. Rb1 {[%clk 0:04:24.9]} 9... e6
{[%clk 0:04:40.1]} 10. Bf4 {[%clk 0:04:19.9]} 10... Bb4 {[%clk 0:04:36.7]} 11.
a3 {[%clk 0:04:15.1]} 11... Bxc3 {[%clk 0:04:35.5]} 12. bxc3 {[%clk 0:04:13.7]}
12... Qa6 {[%clk 0:04:29]} 13. Qc1 {[%clk 0:03:55.9]} 13... O-O {[%clk
0:04:24.4]} 14. Bg5 {[%clk 0:03:51.1]} 14... Ne4 {[%clk 0:04:20.4]} 15. Re1
{[%clk 0:03:43.8]} 15... Nxc3 {[%clk 0:04:09.6]} 16. Rb3 {[%clk 0:03:18.1]}
16... Ne2+ {[%clk 0:04:05.4]} 17. Rxe2 {[%clk 0:03:10.9]} 17... Qxe2 {[%clk
0:04:00.3]} 18. Rxb7 {[%clk 0:03:09.2]} 18... Rfb8 {[%clk 0:03:50.8]} 19. Rxa7
{[%clk 0:02:54.8]} 0-1